bitfinex/quotes_ETHUSD_20241001
["timestamp","ask_amount","ask_price","bid_price","bid_amount"]
[1727811506649,19.53,2503.5,2503.1,4.79405]
[1727811506820,19.53,2503.5,2503.3,4.79365]
[1727811507014,19.53,2503.5,2503.2,4.79384]
[1727811507215,19.53,2503.5,2503.1,4.79405]
[1727811507216,19.53,2503.5,2503.1,9.58797]
[1727811507420,19.53,2503.5,2503.2,4.79377]
[1727811508364,19.53,2503.5,2502.5,4.7952]
[1727811508365,22.04354,2503.5,2502.9,4.7943]
[1727811508998,26.83685,2503.5,2502.9,4.7943]
[1727811509199,26.83685,2503.5,2503.1,4.79405]
[1727811509963,26.83685,2503.5,2502.6,5.5581]
[1727811510169,24.32331,2503.5,2503.0,4.79407]
[1727811510489,24.32331,2503.5,2503.0,4.79415]
[1727811510696,4.79368,2503.3,2502.7,4.79474]
[1727811510904,19.53,2503.4,2502.8,4.79459]
[1727811511194,19.53,2503.4,2503.0,4.79423]
[1727811511405,27.316522,2503.4,2502.9,4.79442]
[1727811511711,0.8224,2503.1,2502.8,4.79453]
[1727811511874,0.8224,2503.1,2502.6,4.79489]
[1727811512061,0.8224,2503.1,2502.7,4.79466]
[1727811512598,4.79444,2502.9,2502.5,4.79506]
[1727811514178,9.58901,2502.9,2502.4,4.79528]
[1727811514503,9.58901,2502.9,2501.8,0.7801]
[1727811514504,4.79503,2502.6,2501.8,0.7801]
[1727811514797,19.53,2502.5,2502.2,4.79575]
[1727811515669,19.53,2502.5,2502.1,4.79593]
[1727811515886,19.53,2502.5,2502.3,4.79557]
[1727811516235,19.53,2502.5,2502.0,4.79614]
[1727811516437,19.53,2502.5,2502.4,4.79539]
[1727811516743,19.53,2502.7,2502.6,4.79501]
[1727811516916,20.3233,2503.0,2502.8,4.79454]
[1727811517113,19.53,2503.0,2502.9,4.79443]
[1727811517741,19.53,2503.3,2503.0,4.79412]
[1727811518032,19.53,2503.4,2503.0,4.79412]
[1727811518526,19.53,2503.4,2503.2,4.79373]
[1727811518710,19.53,2503.4,2503.0,4.7941]
[1727811518711,19.53,2503.4,2503.1,4.79396]
[1727811518912,0.05979974,2503.3,2503.1,4.79396]
[1727811519101,0.05979974,2503.3,2503.2,4.79386]
[1727811519734,0.05979974,2503.3,2502.9,0.958897]
[1727811519895,0.05979974,2503.3,2502.9,4.79433]
[1727811521338,0.05979974,2503.3,2502.9,4.7943]
[1727811521746,0.05979974,2503.3,2503.0,4.79407]
[1727811521905,4.85360974,2503.3,2502.8,5.61897]
[1727811522249,0.7857,2503.2,2502.9,4.79429]
[1727811522538,19.53,2503.1,2502.9,4.79429]
[1727811522845,0.05981612,2503.0,2502.9,4.79429]
[1727811523049,0.05981612,2503.0,2502.9,5.832199]
[1727811523405,0.05981612,2503.0,2502.9,6.70229399]
[1727811523803,19.53,2503.8,2503.7,4.7929]
[1727811524083,19.53,2504.1,2503.7,4.79277]
[1727811524236,19.53,2504.1,2503.8,4.79268]
[1727811524443,19.53,2504.1,2503.6,4.79306]
[1727811524638,24.32223,2504.1,2503.6,5.351386]
[1727811524868,4.7924,2504.0,2503.5,4.79324]
[1727811525263,19.53,2504.1,2503.2,0.8068]
[1727811525789,0.7909,2503.9,2502.7,0.761]
[1727811525939,19.53,2503.8,2502.7,0.761]
[1727811526559,19.53,2503.8,2502.9,0.7971]
[1727811527742,19.53,2503.8,2503.0,0.05195963]
[1727811527945,19.53,2503.8,2503.1,0.7516]
[1727811530462,19.53,2503.8,2503.2,0.07716909]
[1727811531296,19.53,2504.0,2503.2,0.07716909]
[1727811531682,14.53,2504.0,2503.2,0.07716909]
[1727811532322,14.53,2504.0,2503.3,0.8107]
[1727811532489,0.8111,2504.1,2503.3,0.8107]
[1727811532885,0.8219,2504.4,2503.3,0.8107]
[1727811533088,0.8219,2504.4,2503.4,0.07684671]
[1727811533311,14.53,2504.3,2503.5,0.805]
[1727811533517,14.53,2504.3,2503.6,0.07690094]
[1727811534097,0.05501876,2504.2,2503.6,0.07690094]
[1727811534790,0.05501876,2504.2,2503.5,0.805]
[1727811534984,1.59571064,2504.2,2503.5,0.805]
[1727811536806,1.59571064,2504.2,2503.3,0.7992]
[1727811537402,14.53,2504.1,2503.3,0.7992]
[1727811537596,14.58508571,2504.1,2503.3,0.7992]
[1727811542042,14.58508571,2504.1,2503.4,0.07987603]
[1727811542213,14.58508571,2504.1,2503.5,0.8112]
[1727811542407,14.58508571,2504.1,2503.6,0.07986685]
[1727811542717,0.05508571,2504.1,2504.0,9.5394853]
[1727811543043,14.53,2505.0,2504.0,10.00413383]
[1727811543337,15.3056,2505.5,2504.4,0.7893]
[1727811543844,0.04992105,2505.4,2504.4,0.7893]
[1727811544149,0.04992105,2505.4,2504.7,3.7643]
[1727811544302,0.04992105,2505.4,2504.9,0.83]
[1727811544505,14.53,2505.7,2504.9,0.83]
[1727811544705,0.04983959,2505.3,2504.9,0.83]
[1727811544906,14.53,2505.7,2505.1,0.83]
[1727811545150,0.0498708,2505.2,2505.1,0.83]
[1727811545323,14.53,2505.7,2505.1,0.83]
[1727811545805,0.05023053,2505.6,2505.1,0.83]
[1727811546730,0.7543,2506.3,2505.2,0.383]
[1727811547042,14.5808685,2506.2,2505.2,0.383]
[1727811548735,14.5808685,2506.2,2505.1,0.83]
[1727811550144,0.0508685,2506.2,2505.2,5.7501853]
[1727811550376,0.0508685,2506.2,2505.3,0.7945]
[1727811550671,15.3619,2506.6,2505.3,0.7945]
[1727811550672,0.05088185,2506.1,2505.3,0.7945]
[1727811551165,15.3619,2506.6,2505.3,0.7945]
[1727811551166,0.05085913,2506.0,2505.3,0.7945]
[1727811551379,15.3619,2506.6,2505.3,0.7945]
[1727811551577,2.13714724,2506.5,2505.3,0.7945]
[1727811552442,1.58714724,2506.5,2505.3,0.7945]
[1727811552652,14.53,2506.4,2505.7,0.8189]
[1727811553148,0.04921818,2506.3,2505.8,5.7501853]
[1727811553346,0.04921818,2506.3,2506.0,0.7701]
[1727811553547,14.53,2507.2,2506.0,0.7701]
[1727811553769,14.53,2507.1,2506.0,0.7701]
[1727811553987,14.57969913,2507.1,2506.0,0.7701]
[1727811554146,14.57969913,2507.1,2506.2,0.7701]
[1727811556085,7.1298853,2507.0,2505.9,0.7626]
[1727811556250,4.3797,2507.0,2505.9,0.7626]
[1727811556445,0.05007135,2506.9,2505.9,0.7626]
[1727811556651,1.94604848,2506.9,2505.9,0.7626]
[1727811557957,15.08,2506.8,2505.9,0.7626]
[1727811558162,0.04994073,2506.7,2505.9,0.7626]
[1727811561303,0.04994073,2506.7,2504.4,2.0]
[1727811561304,5.7501853,2506.3,2505.6,0.7843]
[1727811561596,14.53,2506.2,2505.6,0.7843]
[1727811561795,14.57952761,2506.2,2505.6,0.7843]
[1727811565282,0.04952761,2506.2,2505.8,0.7566]
[1727811565486,0.04952761,2506.2,2506.0,0.7566]
[1727811565773,14.53,2506.8,2506.0,0.7566]
[1727811565774,14.53,2506.8,2506.1,0.07978919]
[1727811565973,14.53,2506.8,2506.0,0.7566]
[1727811567409,15.983,2506.8,2506.0,0.7566]
[1727811568483,15.983,2506.8,2506.1,0.079648]
[1727811568816,15.983,2506.8,2506.0,0.7566]
[1727811569168,14.53,2506.7,2506.0,0.7566]
[1727811569819,15.2917,2507.4,2506.5,3.0]
[1727811570019,12.15,2508.1,2506.7,5.7501853]
[1727811570020,0.7617,2508.0,2506.7,5.7501853]
[1727811570219,14.53,2507.9,2506.9,0.7761]
[1727811570715,0.7617,2507.8,2506.9,0.7761]
[1727811572486,14.53,2507.9,2506.9,0.7761]
[1727811573711,14.53,2508.4,2507.0,0.8184]
[1727811574066,6.24094824,2508.3,2507.0,0.8184]
[1727811574275,4.78492,2507.9,2507.3,9.57182]
[1727811574471,4.7854,2507.7,2507.1,4.78627]
[1727811574669,4.78538,2507.7,2507.1,4.78627]
[1727811574971,7.195418,2507.7,2507.1,4.78627]
[1727811575316,2.410038,2507.7,2507.1,4.78628]
[1727811575469,2.410038,2507.7,2507.3,4.78597]
[1727811575792,14.53,2507.9,2507.1,4.78632]
[1727811575991,14.53,2507.9,2507.0,0.8184]
[1727811575992,4.78507,2507.8,2507.3,4.78591]
[1727811576718,4.78557,2507.6,2507.0,5.60483]
[1727811576915,4.78578,2507.5,2507.0,5.60483]
[1727811577473,4.78586,2507.4,2506.9,4.78678]
[1727811577708,5.825293,2507.4,2507.0,4.78658]
[1727811578018,4.78612,2507.3,2506.8,4.78685]
[1727811578176,4.78641,2507.1,2506.6,4.78726]
[1727811578515,19.31614,2507.3,2506.7,9.57418]
[1727811578678,21.9125803,2507.3,2506.8,4.78695]
[1727811579017,0.04307162,2507.2,2506.7,4.78702]
[1727811579215,0.04307162,2507.2,2506.8,4.78697]
[1727811579376,0.04307162,2507.2,2506.7,4.78702]
[1727811579377,14.53,2507.1,2506.7,4.78702]
[1727811579684,0.04299555,2507.0,2506.6,4.78731]
[1727811579889,0.04299555,2507.0,2506.3,4.78783]
[1727811579890,4.78698,2506.8,2506.3,4.78783]
[1727811580098,20.08025,2506.9,2506.3,4.78783]
[1727811580282,0.04294818,2506.7,2506.3,4.78783]
[1727811580612,19.31736,2506.6,2506.1,4.78829]
[1727811580915,19.31736,2506.6,2506.0,4.7885]
[1727811580916,19.36006193,2506.6,2506.0,4.7885]
[1727811581207,14.53,2506.5,2506.0,4.78841]
[1727811581410,5.41886561,2506.4,2505.9,9.57716]
[1727811581618,0.8168,2506.3,2505.9,4.78857]
[1727811581824,0.04261957,2506.2,2506.0,4.7885]
[1727811582023,0.5884153,2506.4,2506.0,4.7885]
[1727811582180,0.04258078,2506.3,2505.9,4.78857]
[1727811582793,4.78816,2506.2,2505.7,4.78907]
[1727811583009,0.04238193,2506.1,2505.7,4.78907]
[1727811583429,4.83072193,2506.1,2505.7,4.78907]
[1727811584135,0.04238193,2506.1,2505.7,4.78893]
[1727811584306,5.5955,2505.9,2505.3,4.78971]
[1727811584508,7.7818851,2505.9,2505.3,4.78971]
[1727811584713,0.04220385,2505.8,2505.3,4.78971]
[1727811585006,0.04220385,2505.8,2504.3,1.25202994]
[1727811585007,0.04220385,2505.8,2505.7,4.78908]
[1727811585534,14.53,2506.0,2505.7,4.78908]
[1727811585741,14.53,2506.0,2505.9,4.78869]
[1727811587769,0.5884153,2506.4,2506.0,4.78845]
[1727811587770,14.53,2506.2,2506.0,4.78845]
[1727811589454,14.53,2506.2,2505.9,9.57728]
[1727811589638,14.53,2506.2,2505.7,4.78896]
[1727811589840,16.52062953,2506.2,2505.6,0.797]
[1727811590044,16.52062953,2506.2,2505.6,5.58612]
[1727811590345,21.30879953,2506.2,2505.7,4.78899]
[1727811590550,2.60967395,2506.1,2505.7,4.78899]
[1727811591113,7.39808395,2506.1,2505.6,4.78912]
[1727811591316,0.7629,2506.0,2505.6,4.78912]
[1727811591540,5.55141,2506.0,2505.6,4.78912]
[1727811591876,0.7629,2506.0,2505.7,4.78907]
[1727811592044,3.0319834,2506.0,2505.5,9.57881]
[1727811592243,4.78909,2505.7,2505.3,4.78981]
[1727811592544,19.31871,2505.9,2505.4,4.78954]
[1727811592890,14.53,2505.9,2505.3,4.78967]
[1727811593047,7.02395934,2505.8,2505.3,4.78967]
[1727811593378,4.78948,2505.5,2505.0,5.60611]
[1727811593582,14.53,2505.5,2505.1,4.7901]
[1727811594275,0.04194443,2505.4,2505.0,9.5807]
[1727811594648,0.04194443,2505.4,2505.0,4.79029]
[1727811595286,1.55164479,2505.4,2504.9,4.79058]
[1727811595470,19.31996,2505.3,2504.8,0.7685]
[1727811595670,19.31996,2505.3,2504.9,4.79057]
[1727811595840,14.5718065,2505.2,2504.7,4.79095]
[1727811596040,4.79042,2505.0,2504.6,4.79117]
[1727811596275,0.04156414,2504.9,2504.6,4.79117]
[1727811596646,0.04156414,2504.9,2504.7,4.79087]
[1727811596964,14.53,2505.1,2504.7,4.79096]
[1727811597168,0.04152604,2504.8,2504.7,4.79096]
[1727811597496,0.04144671,2504.8,2504.7,4.79099]
[1727811598278,0.0404395,2504.8,2504.7,4.79099]
[1727811598650,14.53,2505.1,2504.7,4.79099]
[1727811598856,0.0405157,2505.0,2504.8,4.7907]
[1727811599438,14.5705157,2505.0,2504.7,4.79099]
[1727811599637,14.5705157,2505.0,2504.7,4.79089]
[1727811599879,14.5705157,2505.0,2504.8,4.79073]
[1727811600442,14.5705157,2505.0,2504.7,4.79089]
[1727811600767,14.5705157,2505.0,2504.8,4.7907]
[1727811601141,0.0405157,2505.0,2504.9,4.79061]
[1727811601346,0.0405157,2505.0,2504.9,5.54711]
[1727811601548,4.78861,2506.0,2504.7,4.79097]
[1727811601549,5.55664,2505.3,2504.7,4.79097]
[1727811601770,4.79023,2505.1,2504.6,4.79106]
[1727811601953,0.04040021,2505.2,2504.4,0.7565]
[1727811602165,0.04040021,2505.2,2505.1,4.79022]
[1727811602685,0.7942,2505.9,2505.4,4.78956]
[1727811602918,14.53,2506.2,2506.1,4.78831]
[1727811603214,14.53,2506.5,2505.9,4.78856]
[1727811603365,15.3228,2506.5,2505.9,4.78855]
[1727811603713,4.66270228,2506.3,2505.5,0.8011]
[1727811603910,19.78442023,2506.2,2505.7,4.78906]
[1727811604507,19.78442023,2506.2,2505.5,5.59045]
[1727811604810,4.7888,2505.9,2505.4,4.78951]
[1727811604961,0.8082,2506.0,2505.7,4.78903]
[1727811605179,0.8082,2506.0,2505.7,4.78895]
[1727811605484,14.99627023,2506.2,2505.8,4.78888]
[1727811605685,2.52050325,2506.1,2505.5,9.57868]
[1727811605887,4.78862,2506.0,2505.5,4.78933]
[1727811606070,9.57731,2506.0,2505.5,4.78933]
[1727811606269,9.57731,2506.0,2505.3,4.7897]
[1727811606270,4.78887,2505.9,2505.3,4.7897]
[1727811606470,4.78887,2505.9,2505.1,4.79011]
[1727811606471,4.78941,2505.6,2505.1,4.79011]
[1727811606671,14.53,2505.5,2504.9,0.7853]
[1727811606876,14.53,2505.5,2505.1,4.79007]
[1727811607106,14.53,2505.5,2505.1,9.58016]
[1727811607462,14.53,2505.5,2504.6,0.7853]
[1727811607668,14.53,2505.5,2505.3,4.78972]
[1727811607884,14.53,2505.5,2505.3,9.57946]
[1727811608067,15.983,2505.5,2504.9,4.79049]
[1727811608265,4.78984,2505.3,2504.9,4.79049]
[1727811608770,14.53,2505.4,2505.0,4.79035]
[1727811609105,0.04065342,2505.3,2505.0,4.79035]
[1727811609270,0.04065342,2505.3,2505.0,4.7904]
[1727811609467,14.53,2505.2,2504.7,4.79085]
[1727811609703,14.53,2505.2,2504.9,4.79052]
[1727811609908,0.04055421,2505.1,2504.9,4.79052]
[1727811610067,0.04055421,2505.1,2504.9,4.79059]
[1727811610276,0.04055421,2505.1,2504.9,4.7905]
[1727811610815,0.04055421,2505.1,2505.0,4.79041]
[1727811611528,0.04055421,2505.1,2504.9,4.79059]
[1727811611885,0.04055421,2505.1,2504.9,4.7905]
[1727811612623,0.04055421,2505.1,2505.0,4.79041]
[1727811613418,0.04055421,2505.1,2505.0,6.56693278]
[1727811613721,14.53,2505.8,2505.0,1.710991]
[1727811613923,14.53,2505.8,2505.4,4.78955]
[1727811614164,0.04054855,2505.7,2505.5,4.78941]
[1727811614434,14.53,2505.8,2505.6,4.78927]
[1727811614612,0.7504,2506.1,2505.9,4.78866]
[1727811614613,14.53,2506.1,2505.9,4.78866]
[1727811614797,12.96704,2506.4,2506.0,4.7884]
[1727811614798,14.53,2506.3,2506.0,4.7884]
[1727811615180,14.53,2506.3,2505.9,4.78866]
[1727811615603,19.31809,2506.3,2505.8,4.78888]
[1727811615836,19.31809,2506.3,2505.5,4.78934]
[1727811615837,4.7884,2506.1,2505.5,4.78934]
[1727811615986,5.56612,2505.9,2505.2,4.78992]
[1727811616181,14.53,2505.8,2505.5,4.78945]
[1727811616409,19.31892,2505.8,2505.1,0.817]
[1727811616720,2.488504,2505.7,2505.4,4.78962]
[1727811616925,14.53,2505.8,2505.5,4.7894]
[1727811617086,14.53,2505.8,2505.2,4.78992]
[1727811617289,4.78916,2505.7,2505.2,4.78992]
[1727811617510,14.53,2505.8,2505.3,4.78983]
[1727811617783,5.56624,2505.9,2505.2,4.78992]
[1727811617784,19.31916,2505.7,2505.2,4.78992]
[1727811617985,19.3191,2505.7,2505.0,4.7903]
[1727811618336,19.31909,2505.7,2505.2,4.79001]
[1727811618888,19.31909,2505.7,2505.3,4.78983]
[1727811619085,14.53,2505.7,2505.4,4.78955]
[1727811619326,14.53,2505.7,2505.4,4.78952]
[1727811619486,14.53,2505.7,2505.6,4.78927]
[1727811620190,14.53,2506.1,2506.0,4.7885]
[1727811620387,15.3105,2506.5,2506.1,4.78812]
[1727811620608,15.3105,2506.5,2506.2,4.78793]
[1727811620609,14.53,2506.5,2506.2,4.78793]
[1727811620930,14.53,2506.5,2505.7,0.85790708]
[1727811620931,14.53,2506.6,2506.5,4.78755]
[1727811621430,14.53,2506.6,2506.4,4.78771]
[1727811621586,14.53,2506.6,2506.5,4.78755]
[1727811623121,14.53,2506.6,2506.4,4.7876]
[1727811623481,14.53,2506.6,2506.5,4.78755]
[1727811624150,14.56705557,2506.6,2506.4,4.7876]
[1727811624354,14.56705557,2506.6,2506.5,4.78755]
[1727811624969,14.56705557,2506.6,2506.4,4.7876]
[1727811625334,14.56705557,2506.6,2506.4,9.57522]
[1727811625531,14.56705557,2506.6,2506.5,4.78755]
[1727811625532,0.03705557,2506.6,2506.5,4.78755]
[1727811625731,0.03705557,2506.6,2506.5,8.61135]
[1727811625962,14.53,2507.3,2507.2,4.78621]
[1727811626289,14.53,2507.9,2507.5,4.78562]
[1727811626584,12.96938,2508.0,2507.5,4.78562]
[1727811626585,14.53,2507.8,2507.5,4.78562]
[1727811626774,14.53,2507.8,2507.5,4.78549]
[1727811627345,14.53,2507.8,2507.7,4.78526]
[1727811627545,5.57533,2508.3,2507.7,4.78526]
[1727811627546,14.53,2508.2,2507.7,4.78526]
[1727811627849,4.78518,2507.8,2507.3,4.7859]
[1727811628055,0.957016,2507.7,2507.5,4.78562]
[1727811628250,4.78489,2507.9,2507.4,4.7858]
[1727811628637,4.78489,2507.9,2507.3,9.5718]
[1727811628960,0.7595,2507.7,2507.0,4.78652]
[1727811629153,0.7595,2507.7,2506.7,0.8066]
[1727811629379,0.7595,2507.7,2507.3,4.786]
[1727811629380,14.53,2507.6,2507.3,4.786]
[1727811629609,14.53,2507.5,2507.3,4.786]
[1727811629776,14.53,2507.5,2507.4,4.78583]
[1727811629974,14.53,2507.5,2507.3,4.78597]
[1727811630197,14.53,2507.5,2507.4,4.78583]
[1727811630570,14.53,2507.5,2507.3,10.37881]
[1727811630763,14.53,2507.5,2507.4,4.78583]
[1727811631916,14.53,2507.5,2507.3,9.57182]
[1727811631917,14.64378713,2507.5,2507.3,9.57182]
[1727811632067,14.64378713,2507.5,2507.3,4.78591]
[1727811632268,16.10816584,2507.5,2507.2,4.7862]
[1727811632467,16.10816584,2507.5,2507.1,5.54278]
[1727811632468,16.10816584,2507.5,2507.3,4.78585]
[1727811632785,16.10816584,2507.5,2507.3,9.57177]
[1727811632965,14.64378713,2507.5,2507.4,4.78583]
[1727811634996,14.64378713,2507.5,2507.4,4.86558472]
[1727811635214,0.11378713,2507.5,2507.4,4.86558472]
[1727811635583,14.53,2508.1,2507.5,4.78554]
[1727811635784,4.78469,2508.0,2507.5,4.78553]
[1727811635971,5.53848,2507.8,2507.1,0.7565]
[1727811636175,0.7533,2507.8,2507.3,4.78589]
[1727811636406,5.53837,2507.8,2507.3,9.5718]
[1727811636719,5.53837,2507.8,2507.3,4.78589]
[1727811636956,0.7469839,2507.7,2507.5,4.78562]
[1727811637110,4.78547,2507.6,2507.1,5.54281]
[1727811637308,5.53847,2507.8,2507.3,4.78593]
[1727811637551,4.78532,2507.7,2507.1,10.32901]
[1727811637851,5.53847,2507.8,2507.3,4.7859]
[1727811638230,5.53847,2507.8,2507.2,4.7861]
[1727811638439,5.53847,2507.8,2507.1,0.7565]
[1727811638440,0.7469939,2507.7,2507.5,4.78563]
[1727811638625,0.7469939,2507.7,2507.4,4.78581]
[1727811638950,0.11429652,2507.6,2507.4,4.78581]
[1727811639984,0.11429652,2507.6,2507.5,4.78564]
[1727811640312,4.7848,2508.0,2507.5,4.78564]
[1727811640568,0.11423781,2507.6,2507.5,4.78564]
[1727811640749,2.01449,2507.9,2507.5,4.78564]
[1727811640951,0.11423781,2507.6,2507.5,4.86539464]
[1727811641234,14.53,2507.9,2507.6,4.7853]
[1727811641440,14.53,2507.9,2507.7,4.78511]
[1727811641836,14.53,2507.9,2507.6,4.7853]
[1727811642038,14.53,2507.9,2507.7,4.78518]
[1727811642635,14.53,2507.9,2507.6,4.7853]
[1727811642830,14.53,2507.9,2507.4,4.78572]
[1727811643170,14.53,2507.9,2507.2,4.78604]
[1727811643171,4.78517,2507.8,2507.2,4.78604]
[1727811643379,4.78564,2507.5,2507.0,4.78648]
[1727811643534,5.55037,2507.8,2507.2,4.78607]
[1727811643727,8.238358,2507.8,2507.2,4.78607]
[1727811644043,4.78526,2507.7,2507.3,4.78601]
[1727811644293,3.453288,2507.8,2507.3,4.78601]
[1727811644445,8.238508,2507.8,2507.3,4.78601]
[1727811644679,8.238378,2507.8,2507.3,4.78601]
[1727811644958,1.1198004,2507.7,2507.3,4.78601]
[1727811645560,4.78569,2507.5,2507.1,4.78631]
[1727811645761,1.1198004,2507.7,2507.2,4.78606]
[1727811645948,1.1198004,2507.7,2507.3,4.78584]
[1727811646157,1.1325668,2507.6,2507.1,4.78624]
[1727811646386,1.1325668,2507.6,2507.2,4.78607]
[1727811646874,10.57359435,2507.6,2506.8,0.7654]
[1727811647171,15.6625668,2507.6,2507.3,4.78599]
[1727811647372,15.6625668,2507.6,2507.3,4.78592]
[1727811647373,14.53,2507.6,2507.3,4.78592]
[1727811647730,14.53,2507.6,2506.9,4.73523535]
[1727811647936,14.53,2507.6,2507.5,4.78564]
[1727811648497,14.53,2507.6,2507.5,5.64959251]
[1727811648782,14.53,2507.6,2507.5,6.61337825]
[1727811648968,14.53,2507.6,2507.5,5.56984]
[1727811649132,14.53,2507.6,2507.5,4.78564]
[1727811649677,14.53,2507.6,2507.4,4.78575]
[1727811650032,14.53,2507.6,2507.3,4.78599]
[1727811650248,14.53,2507.6,2507.4,4.78578]
[1727811650885,14.53,2507.6,2507.5,4.78564]
[1727811651474,14.53,2507.6,2507.4,4.78568]
[1727811652056,14.53,2507.6,2507.5,4.78564]
[1727811652285,14.53,2507.6,2507.4,4.78568]
[1727811652778,25.98463355,2507.6,2507.1,4.78632]
[1727811652978,14.53,2507.5,2506.9,0.7886]
[1727811653272,14.53,2507.5,2507.2,4.78608]
[1727811653855,0.11044562,2507.4,2507.2,4.78608]
[1727811654995,0.796,2507.2,2506.6,0.8219]
[1727811655201,0.796,2507.2,2506.3,0.8219]
[1727811655202,4.65547755,2507.1,2506.3,0.8219]
[1727811655369,0.1104019,2507.1,2506.9,4.78678]
[1727811655596,0.1104019,2507.1,2506.9,4.78677]
[1727811656111,0.1104019,2507.1,2506.7,4.78702]
[1727811656315,4.65547755,2506.9,2506.3,0.8219]
[1727811656469,4.65547755,2506.9,2506.1,4.78824]
[1727811656470,0.781,2506.7,2506.1,4.78824]
[1727811656664,0.11014996,2506.6,2506.0,0.7904]
[1727811656866,14.64014996,2506.6,2506.3,4.78783]
[1727811657286,16.66098096,2506.6,2506.3,4.78783]
[1727811657494,16.66098096,2506.6,2506.2,4.78798]
[1727811657810,16.66098096,2506.6,2506.2,4.78809]
[1727811658168,14.64014996,2506.6,2506.2,4.78809]
[1727811658365,14.64014996,2506.6,2506.3,4.78782]
[1727811659707,14.64014996,2506.6,2506.0,5.57876]
[1727811659913,14.64014996,2506.6,2506.0,4.78833]
[1727811659914,4.65547755,2506.5,2506.0,4.78833]
[1727811660316,0.10984551,2506.4,2506.3,4.78775]
[1727811660467,0.10984551,2506.4,2506.2,4.7881]
[1727811660670,14.53,2506.6,2506.2,4.7881]
[1727811660870,0.10988028,2506.5,2506.0,9.57674]
[1727811661094,0.10988028,2506.5,2505.8,3.8248]
[1727811661267,0.10988028,2506.5,2506.4,4.78774]
[1727811661463,0.10988028,2506.5,2506.3,4.7879]
[1727811661863,0.781,2506.7,2506.4,4.78773]
[1727811662064,0.10963841,2506.6,2506.4,4.78773]
[1727811662265,0.10963841,2506.6,2506.5,4.78755]
[1727811663089,14.53,2506.8,2506.3,4.78781]
[1727811663090,4.65547755,2506.7,2506.3,4.78781]
[1727811663396,4.78806,2506.3,2505.8,0.8248]
[1727811663601,4.65547755,2506.1,2505.5,5.58399]
[1727811663787,4.65547755,2505.9,2505.3,9.57945]
[1727811663987,14.53,2505.8,2505.4,4.7895]
[1727811664283,14.63938043,2505.8,2505.5,4.78943]
[1727811664636,14.63938043,2505.8,2505.1,0.7573]
[1727811664637,16.05529213,2505.8,2505.1,0.7573]
[1727811664784,14.63938043,2505.8,2505.7,4.78908]
[1727811665593,14.63938043,2505.8,2505.7,5.54638]
[1727811666527,0.10938043,2505.8,2505.7,5.54638]
[1727811666724,0.10938043,2505.8,2505.7,5.62618947]
[1727811667036,5.54125,2506.4,2505.7,5.62618947]
[1727811667183,0.10905877,2505.8,2505.7,5.62618947]
[1727811667383,9.44394755,2506.1,2505.5,4.78933]
[1727811667587,0.10907279,2505.8,2505.5,4.78945]
[1727811667905,0.10925517,2505.7,2505.5,4.78945]
[1727811668211,0.10925517,2505.7,2505.6,4.78927]
[1727811668382,0.78,2506.0,2505.7,4.78904]
[1727811668786,0.78,2506.0,2505.8,4.78881]
[1727811668988,0.10933107,2505.9,2505.6,4.78915]
[1727811669227,0.10933107,2505.9,2505.5,4.78931]
[1727811669542,5.46580118,2505.9,2505.3,4.7898]
[1727811669689,4.65547755,2505.8,2505.4,4.78949]
[1727811669889,0.10920133,2505.7,2505.5,4.78937]
[1727811670101,0.78,2506.0,2505.6,4.78909]
[1727811670299,0.10927089,2505.9,2505.5,4.78937]
[1727811670499,0.10927089,2505.9,2505.6,4.78927]
[1727811670739,0.10927089,2505.9,2505.0,0.8057]
[1727811670740,4.78898,2505.8,2505.3,4.78974]
[1727811670894,9.44445755,2505.8,2505.2,4.79003]
[1727811671094,9.44445755,2505.8,2505.1,4.79009]
[1727811671095,4.78928,2505.6,2505.1,4.79009]
[1727811671399,4.78928,2505.6,2504.9,4.79047]
[1727811671400,0.1090677,2505.5,2504.9,4.79047]
[1727811671600,0.1090677,2505.5,2505.1,4.79014]
[1727811671860,1.61986623,2505.5,2504.7,5.59098]
[1727811672002,1.61986623,2505.5,2505.3,4.78973]
[1727811672003,0.1090677,2505.5,2505.3,4.78973]
[1727811672184,0.1090677,2505.5,2505.4,4.78965]
[1727811672384,0.7646,2505.7,2505.4,4.78965]
[1727811672590,0.10910466,2505.5,2505.4,4.78965]
[1727811672801,0.7646,2505.7,2505.4,4.78965]
[1727811673140,0.7646,2505.7,2505.3,4.78971]
[1727811673286,0.10899071,2505.6,2505.3,4.78971]
[1727811673633,4.76446826,2505.6,2505.1,4.79008]
[1727811673784,0.55290683,2505.5,2505.0,4.79038]
[1727811673990,4.65547755,2505.2,2504.8,4.79063]
[1727811674219,0.7961,2505.3,2505.0,4.79033]
[1727811674445,0.10887288,2505.1,2505.0,4.79033]
[1727811674602,0.759,2505.7,2505.2,4.78986]
[1727811674819,1.77934876,2505.7,2505.3,4.78982]
[1727811675025,1.77934876,2505.7,2505.4,4.78948]
[1727811675026,0.10897155,2505.6,2505.4,4.78948]
[1727811675506,0.10897155,2505.6,2505.3,4.78982]
[1727811676333,0.10897155,2505.6,2505.2,4.78999]
[1727811676537,4.89833155,2505.6,2505.2,4.78999]
[1727811676693,0.77671158,2505.6,2505.2,4.79002]
[1727811677031,0.77671158,2505.6,2505.3,4.78972]
[1727811677816,0.77671158,2505.6,2504.9,0.7908]
[1727811677817,4.78956,2505.5,2505.0,4.79033]
[1727811678019,10.22163913,2505.6,2505.2,4.79]